fUST/lending_fUST_20240524
["ID","MTS","AMOUNT","RATE_DAILY","PERIOD"]
[327844212,1716550250036,-500.0,0.00024652,2]
[327844213,1716550250045,-500.0,0.00024652,2]
[327844214,1716550250055,-500.0,0.00024652,2]
[327844215,1716550250065,-1180.00029902,0.00024652,2]
[327844216,1716550250074,-1180.00029902,0.00024652,2]
[327844217,1716550250084,-1180.00029902,0.00024652,2]
[327844218,1716550250094,-1180.00029902,0.00024652,2]
[327844219,1716550250104,-1180.00029902,0.00024652,2]
[327844220,1716550250114,-1180.00029902,0.00024652,2]
[327844221,1716550250125,-1180.00029902,0.00024652,2]
[327844222,1716550250134,-1180.00029902,0.00024652,2]
[327844223,1716550250144,-1180.00029902,0.00024652,2]
[327844224,1716550250154,-1180.00029902,0.00024652,2]
[327844225,1716550250165,-1386.20264714,0.00024656,11]
[327844226,1716550250175,-3000.0,0.00024656,2]
[327844227,1716550250185,-3000.0,0.00024656,2]
[327844228,1716550250194,-244.69138386,0.00024656,2]
[327844231,1716550410696,154.81422293,9.999e-05,2]
[327844232,1716550500341,160.27099543,9.999e-05,2]
[327844237,1716550924514,-1000.0,0.00033886,120]
[327844238,1716550924538,-288.9,0.00033886,120]
[327844239,1716550924563,-3603.62046581,0.00033886,120]
[327844240,1716550924587,-1035.24,0.00033886,30]
[327844241,1716550924611,-1769.25862963,0.00033886,120]
[327844242,1716550924635,-507.4787199,0.00033886,30]
[327844243,1716550924659,-1322.0328345,0.00033886,30]
[327844244,1716550924683,-898.5314864,0.00033886,30]
[327844245,1716550924706,-2501.36380027,0.00033886,120]
[327844246,1716550924729,-1164.92233338,0.00033886,30]
[327844247,1716550924753,-1574.79639938,0.00033886,30]
[327844248,1716550924776,-1510.19788045,0.00033886,30]
[327844249,1716550924798,-415.32705579,0.00033886,30]
[327844250,1716550924821,-2000.0,0.00033886,120]
[327844251,1716550924844,-228.52126914,0.00033886,30]
[327844252,1716550924868,-1014.72826144,0.00033886,120]
[327844253,1716550924892,-1694.80703051,0.00033886,30]
[327844254,1716550924915,-525.0,0.00033886,30]
[327844255,1716550924937,-525.0,0.00033886,30]
[327844256,1716550924962,-525.0,0.00033886,30]
[327844257,1716550924985,-525.0,0.00033886,30]
[327844258,1716550925007,-525.0,0.00033886,30]
[327844259,1716550925029,-525.0,0.00033886,30]
[327844260,1716550925054,-525.0,0.00033886,30]
[327844261,1716550925081,-525.0,0.00033886,30]
[327844262,1716550925104,-525.0,0.00033886,30]
[327844263,1716550925129,-525.0,0.00033886,30]
[327844264,1716550925154,-525.0,0.00033886,30]
[327844265,1716550925180,-525.0,0.00033886,30]
[327844266,1716550925203,-525.0,0.00033886,30]
[327844267,1716550925227,-525.0,0.00033886,30]
[327844268,1716550925251,-525.0,0.00033886,30]
[327844269,1716550925273,-525.0,0.00033886,30]
[327844270,1716550925297,-525.0,0.00033886,30]
[327844271,1716550925321,-525.0,0.00033886,30]
[327844272,1716550925343,-525.0,0.00033886,30]
[327844273,1716550925367,-525.0,0.00033886,30]
[327844274,1716550925389,-525.0,0.00033886,30]
[327844275,1716550925411,-525.0,0.00033886,30]
[327844276,1716550925433,-525.0,0.00033886,30]
[327844277,1716550925455,-525.0,0.00033886,30]
[327844278,1716550925478,-525.0,0.00033886,30]
[327844279,1716550925502,-525.0,0.00033886,30]
[327844280,1716550925526,-525.0,0.00033886,30]
[327844281,1716550925549,-525.0,0.00033886,30]
[327844282,1716550925571,-525.0,0.00033886,30]
[327844283,1716550925593,-525.0,0.00033886,30]
[327844284,1716550925627,-525.0,0.00033886,30]
[327844285,1716550925653,-525.0,0.00033886,30]
[327844286,1716550925677,-525.0,0.00033886,30]
[327844287,1716550925908,-483.9054417,0.00033886,30]
[327844288,1716550925932,-525.0,0.00033886,30]
[327844289,1716550925957,-2999.99999901,0.00033886,30]
[327844290,1716550925981,-2725.0,0.00033886,90]
[327844453,1716551153117,-301.64429231,0.000199,2]
[327844454,1716551153499,160.27099543,9.999e-05,2]
[327844455,1716551244124,-160.27099543,0.00019225,2]
[327844456,1716551244145,-2268.0946655,0.00019226,2]
[327844457,1716551244165,-76.49569963,0.000199,2]
[327844458,1716551244188,-162.41825109,0.000199,2]
[327844459,1716551244208,-181.50612434,0.00019998,2]
[327844460,1716551244227,-6173.44027474,0.00019998,2]
[327844461,1716551246095,-2180.60460661,0.00019998,2]
[327844475,1716551350182,-160.27099543,0.00019997,2]
[327844476,1716551350212,-129.2138905,0.00019998,2]
[327844477,1716551350248,-68095.5551988,0.00019999,2]
[327844478,1716551350278,-19168.33989498,0.0002,2]
[327844479,1716551351101,-316.42483883,0.0002,2]
[327844480,1716551353111,-1405.48734578,0.0002,2]
[327844481,1716551353136,-477.79168791,0.00020905,2]
[327844482,1716551353165,-1002.76902283,0.00020905,2]
[327844483,1716551353190,-310.2706767,0.00020905,2]
[327844484,1716551353214,-500.0,0.00020905,2]
[327844485,1716551353242,-500.0,0.00020905,2]
[327844486,1716551353267,-500.0,0.00020905,2]
[327844487,1716551353297,-1002.76902283,0.00020905,2]
[327844488,1716551353324,-500.0,0.00020905,2]
[327844489,1716551353349,-500.0,0.00020905,2]
[327844490,1716551353374,-500.0,0.00020905,2]
[327844491,1716551353400,-500.0,0.00020905,2]
[327844492,1716551353428,-1002.76902283,0.00020905,2]
[327844493,1716551353452,-485.67389821,0.00020905,2]
[327844494,1716551353481,-1002.76902283,0.00020905,2]
[327844495,1716551353512,-513.93203434,0.00020905,2]
[327844496,1716551353545,-435.59388622,0.00020905,2]
[327844497,1716551353594,-1002.76902283,0.00020905,2]
[327844498,1716551353629,-500.0,0.00020905,2]
[327844499,1716551353662,-500.0,0.00020905,2]
[327844500,1716551353695,-1002.76902283,0.00020905,2]
[327844501,1716551353724,-500.0,0.00020905,2]
[327844502,1716551353753,-500.0,0.00020905,2]
[327844503,1716551353783,-500.0,0.00020905,2]
[327844504,1716551353823,-1002.76902283,0.00020905,2]
[327844505,1716551353846,-500.0,0.00020905,2]
[327844506,1716551353870,-500.0,0.00020905,2]
[327844507,1716551353895,-1002.76902283,0.00020905,2]
[327844508,1716551353918,-500.0,0.00020905,2]
[327844509,1716551353943,-1002.76902283,0.00020905,2]
[327844510,1716551353963,-500.0,0.00020905,2]
[327844511,1716551354229,-500.0,0.00020905,2]
[327844512,1716551354252,-1002.76902283,0.00020905,2]
[327844513,1716551354276,-1002.76902283,0.00020905,2]
[327844514,1716551354297,-500.0,0.00020905,2]
[327844515,1716551354324,-1002.76902283,0.00020905,2]
[327844516,1716551354344,-500.0,0.00020905,2]
[327844517,1716551354365,-500.0,0.00020905,2]
[327844518,1716551354388,-500.0,0.00020905,2]
[327844519,1716551354412,-1002.76902283,0.00020905,2]
[327844520,1716551354434,-1002.76902283,0.00020905,2]
[327844521,1716551354454,-500.0,0.00020905,2]
[327844522,1716551354477,-1002.76902283,0.00020905,2]
[327844523,1716551354497,-500.0,0.00020905,2]
[327844524,1716551354518,-500.0,0.00020905,2]
[327844525,1716551354541,-1002.76902283,0.00020905,2]
[327844526,1716551354562,-500.0,0.00020905,2]
[327844527,1716551354586,-1002.76902283,0.00020905,2]
[327844528,1716551354607,-500.0,0.00020905,2]
[327844529,1716551354632,-1002.76902283,0.00020905,2]
[327844530,1716551354656,-1002.76902283,0.00020905,2]
[327844531,1716551354677,-268.65271151,0.00020905,2]
[327844532,1716551354698,-500.0,0.00020905,2]
[327844533,1716551354719,-500.0,0.00020905,2]
[327844534,1716551354746,-1002.76902283,0.00020905,2]
[327844535,1716551354784,-336.55926102,0.00020905,2]
[327844536,1716551354807,-500.0,0.00020905,2]
[327844537,1716551354833,-1002.76902283,0.00020905,2]
[327844538,1716551354854,-500.0,0.00020905,2]
[327844539,1716551354878,-1002.76902283,0.00020905,2]
[327844540,1716551354903,-1002.76902283,0.00020905,2]
[327844541,1716551354928,-1002.76902283,0.00020905,2]
[327844542,1716551354952,-1002.76902283,0.00020905,2]
[327844543,1716551354976,-1002.76902283,0.00020905,2]
[327844544,1716551355000,-1002.76902283,0.00020905,2]
[327844545,1716551355025,-1002.76902283,0.00020905,2]
[327844546,1716551355051,-1002.76902283,0.00020905,2]
[327844547,1716551355078,-1002.76902283,0.00020905,2]
[327844548,1716551355102,-1002.76902283,0.00020905,2]
[327844549,1716551355127,-1002.76902283,0.00020905,2]
[327844550,1716551355152,-1002.76902283,0.00020905,2]
[327844551,1716551355178,-1002.76902283,0.00020905,2]
[327844552,1716551355203,-1002.76902283,0.00020905,2]
[327844553,1716551355230,-1002.76902283,0.00020905,2]
[327844554,1716551355255,-1002.76902283,0.00020905,2]
[327844555,1716551355280,-1002.76902283,0.00020905,2]
[327844556,1716551355308,-1002.76902283,0.00020905,2]
[327844557,1716551355333,-1002.76902283,0.00020905,2]
[327844558,1716551355357,-1002.76902283,0.00020905,2]
[327844559,1716551355381,-1002.76902283,0.00020905,2]
[327844560,1716551355407,-1002.76902283,0.00020905,2]
[327844561,1716551355431,-1002.76902283,0.00020905,2]
[327844562,1716551355457,-1002.76902283,0.00020905,2]
[327844563,1716551355482,-1002.76902283,0.00020905,2]
[327844564,1716551355507,-1002.76902283,0.00020905,2]
[327844565,1716551355532,-1002.76902283,0.00020905,2]
[327844566,1716551355558,-1609.3169734,0.00020905,2]
[327844567,1716551355584,-1609.3169734,0.00020905,2]
[327844568,1716551355609,-1609.3169734,0.00020905,2]
[327844569,1716551355633,-1609.3169734,0.00020905,2]
[327844570,1716551355657,-1609.3169734,0.00020905,2]
[327844571,1716551355683,-1609.3169734,0.00020905,2]
[327844572,1716551355708,-1609.3169734,0.00020905,2]
[327844573,1716551355732,-1609.3169734,0.00020905,2]
[327844574,1716551355757,-1609.3169734,0.00020905,2]
[327844575,1716551355782,-1609.3169734,0.00020905,2]
[327844576,1716551355806,-1609.3169734,0.00020905,2]
[327844577,1716551355831,-1609.3169734,0.00020905,2]
[327844578,1716551355856,-908.85498522,0.00020905,2]
[327844579,1716551357207,-700.46198818,0.00020905,2]
[327844580,1716551357234,-1609.3169734,0.00020905,2]
[327844581,1716551357259,-1609.3169734,0.00020905,2]
[327844582,1716551357282,-1609.3169734,0.00020905,2]
[327844583,1716551357308,-1609.3169734,0.00020905,2]
[327844584,1716551357332,-1609.3169734,0.00020905,2]
[327844585,1716551357355,-1609.3169734,0.00020905,2]
[327844586,1716551357379,-1609.31697337,0.00020905,2]
[327844587,1716551357401,-3970.16767272,0.00020905,11]
[327844588,1716551357422,-151.0,0.00020906,2]
[327844589,1716551357443,-252.560117,0.00020906,2]
[327844590,1716551357464,-151.0,0.00020907,2]
[327844591,1716551357483,-155.18172002,0.00020908,2]
[327844592,1716551357506,-151.0,0.00020908,2]
[327844593,1716551357527,-151.0,0.00020908,2]
[327844594,1716551357548,-151.0,0.00020908,2]
[327844595,1716551357570,-151.0,0.00020908,2]
[327844596,1716551357592,-151.0,0.00020908,2]
[327844597,1716551357613,-155.0,0.00020909,2]
[327844598,1716551357634,-151.0,0.00020909,2]
[327844599,1716551357655,-151.0,0.00020909,2]
[327844600,1716551357676,-151.0,0.00020909,2]
[327844601,1716551357697,-151.0,0.00020909,2]
[327844602,1716551357719,-151.0,0.00020909,2]
[327844603,1716551357742,-151.0,0.0002091,2]
[327844604,1716551357763,-151.0,0.0002091,2]
[327844605,1716551357784,-151.0,0.0002091,2]
[327844606,1716551357805,-151.0,0.0002091,2]
[327844607,1716551357829,-233.718913,0.0002091,2]
[327844608,1716551357851,-187.72448335,0.00020911,2]
[327844609,1716551357873,-155.06034203,0.00020911,2]
[327844610,1716551357893,-807.53529323,0.00020911,2]
[327844611,1716551357914,-1395.37486582,0.00020911,2]
[327844612,1716551357935,-155.09905498,0.00020911,2]
[327844613,1716551357955,-1732.60792634,0.00020911,2]
[327844614,1716551357976,-354.40184847,0.00020911,2]
[327844615,1716551357996,-178.58006722,0.00020911,2]
[327844616,1716551358016,-234.15273275,0.00020911,2]
[327844617,1716551358038,-280.14272894,0.00020911,2]
[327844618,1716551358062,-1884.25402905,0.00020911,2]
[327844619,1716551358222,-236.69656973,0.00020911,2]
[327844620,1716551358243,-333.28253777,0.00020911,2]
[327844621,1716551358265,-1403.57326883,0.00020911,2]
[327844622,1716551358285,-302.29142566,0.00020911,2]
[327844623,1716551358308,-155.17989353,0.00020911,2]
[327844624,1716551358331,-156.49929555,0.00020911,2]
[327844625,1716551358350,-780.31224874,0.00020911,2]
[327844626,1716551358371,-260.41137426,0.00020911,2]
[327844627,1716551358390,-155.13052941,0.00020911,2]
[327844628,1716551358411,-874.63672149,0.00020911,2]
[327844629,1716551358432,-303.17653568,0.00020911,2]
[327844630,1716551358453,-395.41357359,0.00020911,2]
[327844631,1716551358472,-1350.88655983,0.00020911,2]
[327844632,1716551358493,-151.0,0.00020911,2]
[327844633,1716551358513,-151.0,0.00020911,2]
[327844634,1716551358533,-151.0,0.00020911,2]
[327844635,1716551358555,-151.0,0.00020911,2]
[327844636,1716551358577,-155.16518711,0.00020912,2]
[327844637,1716551358597,-3596.55013945,0.00020912,2]
[327844638,1716551358617,-362.28443831,0.00020912,2]
[327844639,1716551358638,-6915.09572806,0.00020912,2]
[327844640,1716551358663,-151.0,0.00020912,2]
[327844641,1716551358683,-151.0,0.00020912,2]
[327844642,1716551358705,-655.1586559,0.00021,2]
[327844643,1716551358725,-1051.7294077,0.00021,2]
[327844644,1716551358746,-151.0,0.00021,2]
[327844645,1716551358767,-151.0,0.00021,2]
[327844646,1716551358788,-151.0,0.00021,2]
[327844647,1716551358810,-378.13999191,0.00021064,2]
[327844648,1716551358833,-151.0,0.00021918,2]
[327844649,1716551358854,-151.0,0.00021918,2]
[327844650,1716551358874,-151.0,0.00021918,2]
[327844651,1716551358895,-331.648596,0.00021918,2]
[327844652,1716551358914,-331.648596,0.00021918,2]
[327844653,1716551358934,-331.648596,0.00021918,2]
[327844654,1716551358955,-331.648596,0.00021918,2]
[327844655,1716551358974,-331.648596,0.00021918,2]
[327844656,1716551358994,-331.648596,0.00021918,2]
[327844657,1716551359014,-1000.0,0.00022,20]
[327844658,1716551362348,500.0,0.00020905,2]
[327844659,1716551366500,160.27099543,0.00020913,2]
[327844660,1716551367378,151.0,0.00020906,2]
[327844661,1716551367779,151.0,0.00020911,2]
[327844662,1716551368145,-238.931032,0.00020912,2]
[327844663,1716551373310,151.0,0.00020906,2]
[327844664,1716551373651,151.0,0.00020911,2]
[327844665,1716551373995,151.0,0.00020912,2]
[327844666,1716551376938,381.94141307,0.00021,2]
[327844667,1716551380809,18413.82655126,0.00020913,2]
[327844668,1716551386026,160.27099543,0.00020913,2]
[327844669,1716551410024,160.27099543,0.00020913,2]
[327844670,1716551414493,500.0,0.00020905,2]
[327844671,1716551417467,273.63617521,0.00020913,2]
[327844672,1716551428062,160.27099543,0.00020913,2]
[327844686,1716551432298,-460.75769876,0.00024,2]
[327844688,1716551432307,-151.0,0.00024,2]
[327844690,1716551432317,-4226.56801723,0.00024161,2]
[327844691,1716551432329,-151.0,0.00024176,5]
[327844692,1716551432338,-331.648596,0.00024239,2]
[327844693,1716551432348,-331.648596,0.00024239,2]
[327844694,1716551432358,-273.760614,0.00024384,2]
[327844697,1716551432368,-519.07490182,0.0002441,2]
[327844699,1716551432377,-151.0,0.00024557,2]
[327844700,1716551432386,-1134.41997573,0.00024557,2]
[327844701,1716551432395,-281.0,0.000246,2]
[327844702,1716551432405,-2728.52725566,0.00024656,2]
[327844703,1716551432415,-151.0,0.00024656,2]
[327844704,1716551432424,-151.0,0.00024656,2]
[327844705,1716551432433,-1985.08383636,0.00024657,11]
[327844706,1716551432442,-532.17,0.00024657,2]
[327844707,1716551432451,-337.86567568,0.00024657,2]
[327844708,1716551432460,-500.0,0.00024657,2]
[327844709,1716551432469,-500.0,0.00024657,2]
[327844710,1716551432479,-500.0,0.00024657,2]
[327844711,1716551432487,-500.0,0.00024657,2]
[327844712,1716551432497,-500.0,0.00024657,2]
[327844713,1716551432506,-500.0,0.00024657,2]
[327844714,1716551432515,-500.0,0.00024657,2]
[327844715,1716551432524,-500.0,0.00024657,2]
[327844716,1716551432534,-500.0,0.00024657,2]
[327844717,1716551432543,-500.0,0.00024657,2]
[327844718,1716551432552,-500.0,0.00024657,2]
[327844719,1716551432562,-500.0,0.00024657,2]
[327844720,1716551432571,-500.0,0.00024657,2]
[327844721,1716551432580,-500.0,0.00024657,2]
[327844722,1716551432590,-500.0,0.00024657,2]
[327844723,1716551432599,-500.0,0.00024657,2]
[327844724,1716551432609,-500.0,0.00024657,2]
[327844725,1716551432618,-188.29088582,0.00024657,2]
[327844726,1716551432627,-500.0,0.00024657,2]
[327844727,1716551432637,-500.0,0.00024657,2]
[327844728,1716551432648,-500.0,0.00024657,2]
[327844729,1716551432658,-500.0,0.00024657,2]
[327844730,1716551432667,-500.0,0.00024657,2]
[327844731,1716551432676,-500.0,0.00024657,2]
[327844732,1716551432686,-500.0,0.00024657,2]
[327844733,1716551432695,-500.0,0.00024657,2]
[327844734,1716551432705,-500.0,0.00024657,2]
[327844735,1716551432715,-500.0,0.00024657,2]
[327844736,1716551432724,-500.0,0.00024657,2]
[327844737,1716551432733,-500.0,0.00024657,2]
[327844738,1716551432743,-445.46000046,0.00024657,2]
[327844739,1716551432752,-500.0,0.00024657,2]
[327844740,1716551432761,-500.0,0.00024657,2]
[327844741,1716551432770,-500.0,0.00024657,2]
[327844742,1716551432780,-500.0,0.00024657,2]
[327844743,1716551432789,-426.91237759,0.00024657,2]
[327844744,1716551432799,-500.0,0.00024657,2]
[327844745,1716551432808,-500.0,0.00024657,2]
[327844746,1716551432818,-500.0,0.00024657,2]
[327844747,1716551432827,-500.0,0.00024657,2]
[327844748,1716551432836,-500.0,0.00024657,2]
[327844749,1716551432845,-500.0,0.00024657,2]
[327844750,1716551432854,-500.0,0.00024657,2]
[327844751,1716551432864,-500.0,0.00024657,2]
[327844752,1716551432873,-500.0,0.00024657,2]
[327844753,1716551432882,-500.0,0.00024657,2]
[327844754,1716551432892,-75.19526259,0.00024657,2]
[327844755,1716551432906,-424.80473741,0.00024657,2]
[327844756,1716551432916,-12.43662716,0.00024657,2]
[327844785,1716551438591,-500.0,0.00024383,3]
[327844786,1716551438600,-500.0,0.00024383,3]
[327844787,1716551438609,-148.68974753,0.00024383,3]
[327844788,1716551438620,-351.31025247,0.00024383,3]
[327844790,1716551438629,-500.0,0.00024383,3]
[327844791,1716551438639,-500.0,0.00024656,2]
[327844794,1716551438651,-454.1796103,0.00024656,2]
[327844795,1716551438660,-500.0,0.00024656,2]
[327844797,1716551438670,-500.0,0.00024656,2]
[327844799,1716551438679,-500.0,0.00024656,2]
[327844801,1716551438688,-500.0,0.00024656,2]
[327844804,1716551438698,-380.67816586,0.00024656,2]
[327844805,1716551438707,-500.0,0.00024656,2]
[327844807,1716551438716,-500.0,0.00024656,2]
[327844809,1716551438726,-280.59581346,0.00024656,2]
[327844811,1716551438735,-500.0,0.00024656,2]
[327844813,1716551438745,-500.0,0.00024656,2]
[327844815,1716551438754,-500.0,0.00024656,2]
[327844818,1716551438764,-500.0,0.00024656,2]
[327844820,1716551438773,-500.0,0.00024656,2]
[327844821,1716551438782,-350.96777831,0.00024656,2]
[327844824,1716551438792,-500.0,0.00024656,2]
[327844825,1716551438801,-235.4842756,0.00024656,2]
[327844917,1716551439671,-266.93714831,0.00024656,2]
[327844919,1716551439681,-500.0,0.00024656,2]
[327844921,1716551439690,-500.0,0.00024656,2]
[327844923,1716551439700,-500.0,0.00024656,2]
[327844925,1716551439709,-500.0,0.00024656,2]
[327844927,1716551439719,-500.0,0.00024656,2]
[327844929,1716551439728,-500.0,0.00024656,2]
[327844931,1716551439738,-500.0,0.00024656,2]
[327844933,1716551439747,-500.0,0.00024656,2]
[327844935,1716551439757,-500.0,0.00024656,2]
[327844937,1716551439767,-500.0,0.00024656,2]
[327844939,1716551439776,-500.0,0.00024656,2]
[327844941,1716551439785,-500.0,0.00024656,2]
[327844943,1716551439795,-500.0,0.00024656,2]
[327844945,1716551439804,-500.0,0.00024656,2]
[327844947,1716551439813,-500.0,0.00024656,2]
[327844949,1716551439823,-500.0,0.00024656,2]
[327844951,1716551439832,-500.0,0.00024656,2]
[327844953,1716551439842,-500.0,0.00024656,2]
[327844955,1716551439851,-500.0,0.00024656,3]
[327844957,1716551439860,-500.0,0.00024656,2]
[327844959,1716551439870,-500.0,0.00024656,2]
[327844961,1716551439879,-500.0,0.00024656,2]
[327844963,1716551439889,-500.0,0.00024656,2]
[327844964,1716551439899,-500.0,0.00024656,3]
[327844971,1716551440049,-500.0,0.00024656,2]
[327844972,1716551440061,-500.0,0.00024656,2]
[327844973,1716551440072,-500.0,0.00024656,2]
[327844974,1716551440081,-500.0,0.00024656,2]
[327844976,1716551440091,-500.0,0.00024656,2]
[327844978,1716551440101,-500.0,0.00024656,2]
[327844979,1716551440110,-500.0,0.00024656,3]
[327844980,1716551440120,-500.0,0.00024656,3]
[327844981,1716551440129,-500.0,0.00024656,3]
[327844982,1716551440138,-500.0,0.00024656,3]
[327844983,1716551440149,-500.0,0.00024656,3]
[327844984,1716551440159,-500.0,0.00024657,2]
[327844985,1716551440169,-570.38,0.00024657,2]
[327844986,1716551440178,-500.0,0.00024657,2]
[327844987,1716551440188,-500.0,0.00024657,2]
[327844988,1716551440198,-500.0,0.00024657,2]
[327844989,1716551440207,-500.0,0.00024657,2]
[327844990,1716551440217,-500.0,0.00024657,2]
[327844991,1716551440227,-500.0,0.00024657,2]
[327844992,1716551440237,-931.2,0.00024657,2]
[327844993,1716551440250,-500.0,0.00024657,2]
[327844994,1716551440259,-151.0,0.00024657,2]
[327844995,1716551440270,-151.0,0.00024657,2]
[327844996,1716551440279,-151.0,0.00024657,2]
[327844997,1716551440289,-151.0,0.00024657,2]
[327844998,1716551440299,-500.0,0.00024657,2]
[327844999,1716551440310,-151.0,0.00024657,2]
[327845000,1716551440320,-151.0,0.00024657,2]
[327845001,1716551440331,-500.0,0.00024657,2]
[327845002,1716551440340,-500.0,0.00024657,2]
[327845003,1716551440349,-500.0,0.00024657,2]
[327845004,1716551440359,-500.0,0.00024657,2]
[327845005,1716551440369,-582.2,0.00024657,2]
[327845006,1716551440379,-500.0,0.00024657,2]
[327845007,1716551440391,-500.0,0.00024657,2]
[327845008,1716551440403,-1591.67,0.00024657,2]
[327845009,1716551440412,-500.0,0.00024657,2]
[327845010,1716551440422,-500.0,0.00024657,2]
[327845011,1716551440431,-151.0,0.00024657,2]
[327845013,1716551440440,-151.0,0.00024657,2]
[327845015,1716551440448,-151.0,0.00024657,2]
[327845017,1716551440458,-258.087069,0.00024657,2]
[327845019,1716551440467,-897.96,0.00024657,2]
[327845021,1716551440477,-500.0,0.00024657,2]
[327845023,1716551440486,-500.0,0.00024657,2]
[327845026,1716551440496,-500.0,0.00024657,2]
[327845028,1716551440505,-500.0,0.00024657,2]
[327845030,1716551440515,-500.0,0.00024657,2]
[327845032,1716551440525,-294.20953369,0.00024657,2]
[327845033,1716551440534,-500.0,0.00024657,2]
[327845034,1716551440544,-500.0,0.00024657,2]
[327845035,1716551440554,-809.48,0.00024657,2]
[327845036,1716551440564,-500.0,0.00024657,2]
[327845037,1716551440573,-500.0,0.00024657,2]
[327845038,1716551440583,-500.0,0.00024657,2]
[327845039,1716551440594,-500.0,0.00024657,2]
[327845040,1716551440604,-1042.22,0.00024657,2]
[327845041,1716551440617,-500.0,0.00024657,2]
[327845042,1716551440627,-500.0,0.00024657,2]
[327845043,1716551440636,-1789.37,0.00024657,2]
[327845044,1716551440645,-500.0,0.00024657,2]
[327845045,1716551440660,-500.0,0.00024657,2]
[327845046,1716551440669,-500.0,0.00024657,2]
[327845047,1716551440679,-331.648596,0.00024657,2]
[327845048,1716551440689,-331.648596,0.00024657,2]
[327845049,1716551440699,-331.648596,0.00024657,2]
[327845050,1716551440709,-331.648596,0.00024657,2]
[327845051,1716551440720,-331.648596,0.00024657,2]
[327845052,1716551440729,-331.648596,0.00024657,2]
[327845053,1716551440739,-331.648596,0.00024657,2]
[327845054,1716551440752,-331.648596,0.00024657,2]
[327845055,1716551440762,-331.648596,0.00024657,2]
[327845056,1716551440772,-331.648596,0.00024657,2]
[327845057,1716551440782,-2468.77,0.00024657,2]
[327845058,1716551440792,-331.648596,0.00024657,2]
[327845059,1716551440802,-331.648606,0.00024657,2]
[327845060,1716551440812,-500.0,0.00024657,2]
[327845061,1716551440821,-890.81,0.00024657,2]
[327845062,1716551440831,-500.0,0.00024657,2]
[327845063,1716551440841,-500.0,0.00024657,2]
[327845064,1716551440850,-500.0,0.00024657,2]
[327845065,1716551440860,-500.0,0.00024657,2]
[327845066,1716551440869,-500.0,0.00024657,2]
[327845067,1716551440880,-151.0,0.00024657,2]
[327845068,1716551440889,-151.0,0.00024657,2]
[327845069,1716551440899,-224.132964,0.00024657,2]
[327845070,1716551440909,-500.0,0.00024657,2]
[327845071,1716551440919,-500.0,0.00024657,2]
[327845072,1716551440928,-500.0,0.00024657,2]
[327845073,1716551440938,-1393.46,0.00024657,2]
[327845074,1716551440948,-741.58,0.00024657,2]
[327845075,1716551440957,-500.0,0.00024657,2]
[327845076,1716551440966,-500.0,0.00024657,2]
[327845077,1716551440975,-500.0,0.00024657,2]
[327845078,1716551440984,-500.0,0.00024657,2]
[327845079,1716551440993,-500.74,0.00024657,2]
[327845080,1716551441003,-500.0,0.00024657,2]
[327845081,1716551441012,-650.72,0.00024657,2]
[327845082,1716551441022,-500.0,0.00024657,2]
[327845083,1716551441031,-500.0,0.00024657,2]
[327845084,1716551441040,-527.24,0.00024657,2]
[327845085,1716551441050,-500.0,0.00024657,2]
[327845086,1716551441059,-1748.58,0.00024657,2]
[327845087,1716551441069,-500.0,0.00024657,2]
[327845088,1716551441078,-500.0,0.00024657,2]
[327845089,1716551441087,-500.0,0.00024657,2]